[Event "Championnat d'Europe de Blitz"]
[Date "2024.12.09"]
[White "Tudor, Henry Edward"]
[Black "Navara, David"]
[WhiteElo "2375"]
[BlackElo "2665"]
[Round "7.54"]
[Result "0-1"]
[TimeControl "180+2"]

1. d4 {[%emt 00:00:01] [%clk 00:03:03]} Nf6 {[%clk 00:03:03]} 2. c4 {[%emt
00:00:01] [%clk 00:03:04]} e6 {[%clk 00:03:05]} 3. Nc3 {[%emt 00:00:01] [%clk
00:03:05]} Bb4 {[%emt 00:00:01] [%clk 00:03:06]} 4. e3 {[%clk 00:03:06]} O-O
{[%emt 00:00:03] [%clk 00:03:05]} 5. Bd3 {[%emt 00:00:02] [%clk 00:03:06]} d5
{[%clk 00:03:06]} 6. a3 {[%emt 00:00:01] [%clk 00:03:07]} Bxc3+ {[%emt 00:00:01]
[%clk 00:03:06]} 7. bxc3 {[%emt 00:00:01] [%clk 00:03:08]} dxc4 {[%emt 00:00:02]
[%clk 00:03:07]} 8. Bxc4 {[%emt 00:00:01] [%clk 00:03:08]} c5 {[%clk 00:03:08]}
9. Nf3 {[%emt 00:00:01] [%clk 00:03:09]} Qc7 {[%emt 00:00:01] [%clk 00:03:09]}
10. Be2 {[%clk 00:03:10]} Rd8 {[%emt 00:00:02] [%clk 00:03:10]} 11. O-O {[%emt
00:00:09] [%clk 00:03:03]} b6 {[%clk 00:03:11]} 12. Bb2 {[%emt 00:00:24] [%clk
00:02:40]} Bb7 {[%emt 00:00:04] [%clk 00:03:09]} 13. c4 {[%emt 00:00:04] [%clk
00:02:38]} Nbd7 {[%emt 00:00:13] [%clk 00:02:58]} 14. Re1 {[%emt 00:00:08] [%clk
00:02:32]} Nf8 {[%emt 00:00:09] [%clk 00:02:51]} 15. Ne5 {[%emt 00:00:10] [%clk
00:02:24]} Ng6 {[%emt 00:00:02] [%clk 00:02:52]} 16. Nxg6 {[%emt 00:00:01] [%clk
00:02:25]} hxg6 {[%emt 00:00:01] [%clk 00:02:52]} 17. Qb3 {[%clk 00:02:26]} g5
{[%emt 00:00:17] [%clk 00:02:37]} 18. Rad1 {[%emt 00:00:13] [%clk 00:02:15]}
Rac8 {[%emt 00:00:20] [%clk 00:02:20]} 19. h3 {[%emt 00:00:51] [%clk 00:01:25]}
Ne4 {[%emt 00:00:27] [%clk 00:01:55]} 20. a4 {[%emt 00:00:17] [%clk 00:01:11]}
cxd4 {[%emt 00:00:37] [%clk 00:01:20]} 21. exd4 {[%emt 00:00:01] [%clk
00:01:12]} Nd6 {[%clk 00:01:20]} 22. Rc1 {[%emt 00:00:49] [%clk 00:00:25]} Nf5
{[%emt 00:00:02] [%clk 00:01:19]} 23. Red1 {[%emt 00:00:01] [%clk 00:00:27]} Qf4
{[%emt 00:00:08] [%clk 00:01:13]} 24. a5 {[%emt 00:00:19] [%clk 00:00:10]} bxa5
{[%emt 00:00:36] [%clk 00:00:39]} 25. Qxb7 {[%emt 00:00:03] [%clk 00:00:09]} Rb8
{[%clk 00:00:40]} 26. Qa6 {[%emt 00:00:08] [%clk 00:00:03]} Rxb2 {[%emt
00:00:02] [%clk 00:00:40]} 27. Re1 {[%emt 00:00:03] [%clk 00:00:03]} Nxd4 {[%emt
00:00:03] [%clk 00:00:38]} 0-1

[Site "Europe Echecs"]

[Event "Championnat d'Europe de Blitz"]
[Date "2024.12.09"]
[White "Korobov, Anton"]
[Black "Pichot, Alan"]
[WhiteElo "2629"]
[BlackElo "2637"]
[Round "8.1"]
[Result "1-0"]
[TimeControl "180+2"]

1. e4 {[%emt 00:15:04] [%clk 00:03:02]} e5 {[%emt 00:00:19] [%clk 00:03:02]} 2.
Nf3 {[%emt 00:00:01] [%clk 00:03:03]} Nc6 {[%emt 00:00:02] [%clk 00:03:03]} 3.
Bc4 {[%emt 00:00:03] [%clk 00:03:02]} Bc5 {[%emt 00:00:03] [%clk 00:03:02]} 4.
d3 {[%emt 00:00:04] [%clk 00:03:00]} h6 {[%emt 00:00:01] [%clk 00:03:02]} 5. Be3
{[%emt 00:00:07] [%clk 00:02:55]} Bb6 {[%emt 00:00:06] [%clk 00:02:59]} 6. Nc3
{[%emt 00:00:06] [%clk 00:02:51]} Nf6 {[%emt 00:00:02] [%clk 00:02:59]} 7. Nd5
{[%emt 00:00:09] [%clk 00:02:44]} d6 {[%emt 00:00:05] [%clk 00:02:56]} 8. Nxb6
{[%emt 00:00:05] [%clk 00:02:41]} axb6 {[%emt 00:00:02] [%clk 00:02:56]} 9. c3
{[%emt 00:00:16] [%clk 00:02:26]} O-O {[%emt 00:00:06] [%clk 00:02:52]} 10. O-O
{[%emt 00:00:06] [%clk 00:02:22]} d5 {[%emt 00:00:17] [%clk 00:02:38]} 11. exd5
{[%emt 00:00:04] [%clk 00:02:20]} Nxd5 {[%emt 00:00:01] [%clk 00:02:39]} 12. Re1
{[%emt 00:00:08] [%clk 00:02:14]} Re8 {[%emt 00:00:03] [%clk 00:02:38]} 13. h3
{[%emt 00:00:10] [%clk 00:02:05]} Bf5 {[%emt 00:00:07] [%clk 00:02:33]} 14. Bd2
{[%emt 00:00:18] [%clk 00:01:49]} Nf6 {[%emt 00:00:32] [%clk 00:02:03]} 15. Re3
{[%emt 00:00:20] [%clk 00:01:31]} Qd6 {[%emt 00:00:13] [%clk 00:01:53]} 16. b4
{[%emt 00:00:09] [%clk 00:01:24]} Rad8 {[%emt 00:00:11] [%clk 00:01:44]} 17. Qb3
{[%emt 00:00:12] [%clk 00:01:13]} Be6 {[%emt 00:00:09] [%clk 00:01:38]} 18. Rae1
{[%emt 00:00:01] [%clk 00:01:13]} Nd5 {[%emt 00:00:13] [%clk 00:01:28]} 19. Re4
{[%emt 00:00:45] [%clk 00:00:30]} b5 {[%emt 00:00:07] [%clk 00:01:23]} 20. Bxb5
{[%emt 00:00:01] [%clk 00:00:31]} Nf6 {[%emt 00:00:02] [%clk 00:01:24]} 21. Qc2
{[%emt 00:00:14] [%clk 00:00:18]} Nxe4 {[%emt 00:00:02] [%clk 00:01:24]} 22.
dxe4 {[%emt 00:00:01] [%clk 00:00:19]} f6 {[%emt 00:00:06] [%clk 00:01:20]} 23.
Be3 {[%emt 00:00:01] [%clk 00:00:19]} Qe7 {[%emt 00:00:02] [%clk 00:01:21]} 24.
a4 {[%emt 00:00:01] [%clk 00:00:20]} Qf7 {[%emt 00:00:04] [%clk 00:01:19]} 25.
a5 {[%emt 00:00:03] [%clk 00:00:20]} Bc4 {[%emt 00:00:05] [%clk 00:01:16]} 26.
Ba4 {[%emt 00:00:05] [%clk 00:00:16]} Bd3 {[%emt 00:00:13] [%clk 00:01:05]} 27.
Qb3 {[%emt 00:00:03] [%clk 00:00:15]} Bxe4 {[%emt 00:00:07] [%clk 00:01:00]} 28.
Qxf7+ {[%emt 00:00:01] [%clk 00:00:15]} Kxf7 {[%emt 00:00:01] [%clk 00:01:01]}
29. Nd2 {[%emt 00:00:02] [%clk 00:00:16]} Bf5 {[%emt 00:00:23] [%clk 00:00:40]}
30. Nb3 {[%emt 00:00:03] [%clk 00:00:15]} Rd3 {[%emt 00:00:10] [%clk 00:00:32]}
31. Rc1 {[%emt 00:00:03] [%clk 00:00:15]} Red8 {[%emt 00:00:10] [%clk 00:00:24]}
32. Nc5 {[%emt 00:00:01] [%clk 00:00:15]} Rxe3 {[%emt 00:00:10] [%clk 00:00:15]}
33. fxe3 {[%emt 00:00:01] [%clk 00:00:16]} Rd2 {[%emt 00:00:06] [%clk 00:00:12]}
34. e4 {[%emt 00:00:04] [%clk 00:00:14]} Bc8 {[%emt 00:00:02] [%clk 00:00:13]}
35. a6 {[%emt 00:00:01] [%clk 00:00:14]} b5 {[%emt 00:00:09] [%clk 00:00:06]}
36. Bxb5 {[%emt 00:00:02] [%clk 00:00:14]} Na7 {[%clk 00:00:08]} 37. Bc4+ {[%clk
00:00:15]} Ke7 {[%clk 00:00:09]} 38. b5 {[%emt 00:00:03] [%clk 00:00:13]} Rb2
{[%emt 00:00:02] [%clk 00:00:10]} 39. Ra1 {[%emt 00:00:02] [%clk 00:00:13]} Kd6
{[%emt 00:00:01] [%clk 00:00:11]} 40. Nb7+ {[%emt 00:00:01] [%clk 00:00:14]} Ke7
{[%emt 00:00:02] [%clk 00:00:12]} 41. Bf1 {[%clk 00:00:15]} g6 {[%emt 00:00:07]
[%clk 00:00:08]} 42. c4 {[%emt 00:00:01] [%clk 00:00:16]} f5 {[%emt 00:00:02]
[%clk 00:00:08]} 43. exf5 {[%emt 00:00:01] [%clk 00:00:16]} gxf5 {[%clk
00:00:09]} 44. Na5 {[%emt 00:00:02] [%clk 00:00:17]} Kd6 {[%emt 00:00:01] [%clk
00:00:10]} 45. Nc6 {[%emt 00:00:03] [%clk 00:00:16]} Nxc6 {[%emt 00:00:07] [%clk
00:00:05]} 46. bxc6 {[%clk 00:00:17]} Rb8 {[%emt 00:00:01] [%clk 00:00:06]} 47.
a7 {[%emt 00:00:02] [%clk 00:00:17]} Ra8 {[%clk 00:00:08]} 48. Ra5 {[%clk
00:00:18]} e4 {[%emt 00:00:03] [%clk 00:00:07]} 49. c5+ {[%emt 00:00:05] [%clk
00:00:14]} Kxc6 {[%emt 00:00:05] [%clk 00:00:04]} 50. Bc4 {[%emt 00:00:01] [%clk
00:00:15]} Bb7 {[%emt 00:00:03] [%clk 00:00:04]} 51. Kf2 {[%clk 00:00:15]} f4
{[%emt 00:00:01] [%clk 00:00:05]} 52. Be6 {[%emt 00:00:06] [%clk 00:00:11]} Re8
{[%emt 00:00:03] [%clk 00:00:04]} 53. Bf5 {[%emt 00:00:01] [%clk 00:00:12]} e3+
{[%emt 00:00:01] [%clk 00:00:05]} 54. Ke2 {[%clk 00:00:13]} Kd5 {[%emt 00:00:03]
[%clk 00:00:04]} 55. Bd7 {[%emt 00:00:05] [%clk 00:00:10]} Kd4 {[%emt 00:00:03]
[%clk 00:00:03]} 56. Bxe8 {[%emt 00:00:02] [%clk 00:00:11]} 1-0

[Site "Europe Echecs"]

[Event "Championnat d'Europe de Blitz"]
[Date "2024.12.09"]
[White "Van Foreest, Jorden"]
[Black "Mamedov, Rauf"]
[WhiteElo "2677"]
[BlackElo "2656"]
[Round "8.2"]
[Result "1-0"]
[TimeControl "180+2"]

1. e4 {[%emt 00:00:01] [%clk 00:03:03]} c5 {[%clk 00:03:03]} 2. Nf3 {[%emt
00:00:01] [%clk 00:03:03]} d6 {[%emt 00:00:04] [%clk 00:03:02]} 3. Bb5+ {[%emt
00:00:12] [%clk 00:02:53]} Nc6 {[%emt 00:00:02] [%clk 00:03:02]} 4. O-O {[%emt
00:00:04] [%clk 00:02:52]} Bd7 {[%emt 00:00:01] [%clk 00:03:03]} 5. Re1 {[%emt
00:00:01] [%clk 00:02:53]} Nf6 {[%clk 00:03:04]} 6. c3 {[%emt 00:00:13] [%clk
00:02:41]} a6 {[%emt 00:00:01] [%clk 00:03:05]} 7. Bc4 {[%clk 00:02:42]} Bg4
{[%emt 00:00:12] [%clk 00:02:55]} 8. d3 {[%emt 00:00:14] [%clk 00:02:31]} Bxf3
{[%emt 00:00:23] [%clk 00:02:33]} 9. Qxf3 {[%emt 00:00:02] [%clk 00:02:31]} Ne5
{[%emt 00:00:01] [%clk 00:02:34]} 10. Qe2 {[%clk 00:02:32]} Nxc4 {[%emt
00:00:02] [%clk 00:02:34]} 11. dxc4 {[%emt 00:00:01] [%clk 00:02:33]} g6 {[%emt
00:00:19] [%clk 00:02:17]} 12. e5 {[%emt 00:00:07] [%clk 00:02:28]} dxe5 {[%emt
00:00:13] [%clk 00:02:06]} 13. Qxe5 {[%emt 00:00:01] [%clk 00:02:29]} Bg7 {[%emt
00:00:17] [%clk 00:01:51]} 14. Qxc5 {[%emt 00:00:01] [%clk 00:02:30]} Rc8 {[%emt
00:00:02] [%clk 00:01:52]} 15. Qb4 {[%emt 00:00:10] [%clk 00:02:22]} O-O {[%emt
00:00:24] [%clk 00:01:30]} 16. Qxb7 {[%emt 00:00:09] [%clk 00:02:14]} Rxc4
{[%emt 00:00:01] [%clk 00:01:31]} 17. Qxa6 {[%emt 00:00:08] [%clk 00:02:08]} Qc7
{[%emt 00:00:06] [%clk 00:01:28]} 18. Nd2 {[%emt 00:00:02] [%clk 00:02:06]} Rc6
{[%emt 00:00:09] [%clk 00:01:22]} 19. Qe2 {[%emt 00:00:03] [%clk 00:02:05]} e6
{[%emt 00:00:01] [%clk 00:01:23]} 20. Nf3 {[%emt 00:00:17] [%clk 00:01:50]} Nd5
{[%emt 00:00:02] [%clk 00:01:24]} 21. Bg5 {[%emt 00:00:16] [%clk 00:01:35]} Rb8
{[%emt 00:00:02] [%clk 00:01:24]} 22. Bh4 {[%emt 00:00:03] [%clk 00:01:34]} Qb7
{[%emt 00:00:22] [%clk 00:01:05]} 23. Bg3 {[%emt 00:00:01] [%clk 00:01:34]} Ra8
{[%emt 00:00:01] [%clk 00:01:07]} 24. Be5 {[%emt 00:00:07] [%clk 00:01:28]} f6
{[%emt 00:00:06] [%clk 00:01:03]} 25. Bd4 {[%emt 00:00:32] [%clk 00:00:58]} e5
{[%emt 00:00:02] [%clk 00:01:03]} 26. Be3 {[%emt 00:00:01] [%clk 00:00:59]} Rb8
{[%emt 00:00:02] [%clk 00:01:03]} 27. Rad1 {[%emt 00:00:07] [%clk 00:00:53]}
Nxe3 {[%emt 00:00:13] [%clk 00:00:51]} 28. fxe3 {[%emt 00:00:06] [%clk
00:00:49]} Qxb2 {[%emt 00:00:27] [%clk 00:00:26]} 29. Rd8+ {[%emt 00:00:02]
[%clk 00:00:50]} Kf7 {[%clk 00:00:28]} 30. Nxe5+ {[%emt 00:00:02] [%clk
00:00:50]} fxe5 {[%emt 00:00:01] [%clk 00:00:29]} 31. Qf3+ {[%clk 00:00:52]} Ke7
{[%emt 00:00:25] [%clk 00:00:06]} 32. Rxb8 {[%emt 00:00:01] [%clk 00:00:52]}
Qxc3 {[%emt 00:00:03] [%clk 00:00:05]} 33. Rb7+ {[%emt 00:00:02] [%clk
00:00:52]} Kd8 {[%emt 00:00:01] [%clk 00:00:06]} 34. Rd1+ {[%emt 00:00:04] [%clk
00:00:51]} 1-0

[Site "Europe Echecs"]

[Event "Championnat d'Europe de Blitz"]
[Date "2024.12.09"]
[White "Muradli, Mahammad"]
[Black "Fedoseev, Vladimir"]
[WhiteElo "2588"]
[BlackElo "2709"]
[Round "8.3"]
[Result "0-1"]
[TimeControl "180+2"]

1. Nf3 {[%clk 00:03:03]} Nf6 {[%emt 00:00:02] [%clk 00:03:02]} 2. c4 {[%emt
00:00:02] [%clk 00:03:04]} e6 {[%clk 00:03:02]} 3. g3 {[%emt 00:00:01] [%clk
00:03:05]} d5 {[%emt 00:00:06] [%clk 00:02:58]} 4. Bg2 {[%emt 00:00:02] [%clk
00:03:06]} Be7 {[%emt 00:00:11] [%clk 00:02:48]} 5. O-O {[%emt 00:00:03] [%clk
00:03:05]} O-O {[%emt 00:00:02] [%clk 00:02:49]} 6. b3 {[%emt 00:00:02] [%clk
00:03:06]} b6 {[%emt 00:00:04] [%clk 00:02:45]} 7. Bb2 {[%emt 00:00:13] [%clk
00:02:56]} Bb7 {[%clk 00:02:46]} 8. cxd5 {[%emt 00:00:01] [%clk 00:02:57]} Bxd5
{[%emt 00:00:09] [%clk 00:02:38]} 9. Nc3 {[%emt 00:00:21] [%clk 00:02:39]} Bb7
{[%emt 00:00:01] [%clk 00:02:39]} 10. d4 {[%emt 00:00:05] [%clk 00:02:36]} Nbd7
{[%emt 00:00:08] [%clk 00:02:33]} 11. Qc2 {[%emt 00:00:25] [%clk 00:02:12]} Rc8
{[%emt 00:00:01] [%clk 00:02:34]} 12. Rad1 {[%emt 00:00:48] [%clk 00:01:26]} c5
{[%emt 00:00:01] [%clk 00:02:35]} 13. Qb1 {[%clk 00:01:28]} c4 {[%emt 00:00:16]
[%clk 00:02:21]} 14. bxc4 {[%emt 00:00:59] [%clk 00:00:31]} Rxc4 {[%emt
00:00:02] [%clk 00:02:21]} 15. Ne5 {[%clk 00:00:32]} Bxg2 {[%emt 00:00:08] [%clk
00:02:16]} 16. Kxg2 {[%emt 00:00:02] [%clk 00:00:33]} Nxe5 {[%emt 00:00:27]
[%clk 00:01:50]} 17. dxe5 {[%emt 00:00:01] [%clk 00:00:34]} Nd7 {[%emt 00:00:13]
[%clk 00:01:39]} 18. Ne4 {[%emt 00:00:09] [%clk 00:00:27]} Qc7 {[%emt 00:00:39]
[%clk 00:01:02]} 19. Nd6 {[%emt 00:00:01] [%clk 00:00:28]} Rc5 {[%emt 00:00:04]
[%clk 00:01:00]} 20. Qe4 {[%emt 00:00:16] [%clk 00:00:14]} Ra5 {[%emt 00:00:15]
[%clk 00:00:47]} 21. a3 {[%emt 00:00:07] [%clk 00:00:09]} Nc5 {[%emt 00:00:02]
[%clk 00:00:47]} 22. Qf3 {[%clk 00:00:10]} f6 {[%emt 00:00:17] [%clk 00:00:32]}
23. Qe3 {[%clk 00:00:11]} Qc6+ {[%emt 00:00:06] [%clk 00:00:28]} 24. f3 {[%emt
00:00:05] [%clk 00:00:08]} Ra4 {[%emt 00:00:03] [%clk 00:00:27]} 25. Rd2 {[%emt
00:00:06] [%clk 00:00:04]} f5 {[%emt 00:00:01] [%clk 00:00:28]} 26. Rd4 {[%emt
00:00:02] [%clk 00:00:04]} Rxd4 {[%emt 00:00:08] [%clk 00:00:22]} 27. Qxd4
{[%emt 00:00:01] [%clk 00:00:05]} Rd8 {[%clk 00:00:23]} 28. Rd1 {[%clk
00:00:07]} Nb7 {[%emt 00:00:03] [%clk 00:00:22]} 29. Rd3 {[%emt 00:00:05] [%clk
00:00:04]} Nxd6 {[%emt 00:00:04] [%clk 00:00:20]} 30. exd6 {[%clk 00:00:06]} Bf6
{[%clk 00:00:21]} 31. Qe3 {[%emt 00:00:05] [%clk 00:00:00]} 0-1

[Site "Europe Echecs"]

[Event "Championnat d'Europe de Blitz"]
[Date "2024.12.09"]
[White "Jobava, Baadur"]
[Black "Quparadze, Giga"]
[WhiteElo "2578"]
[BlackElo "2537"]
[Round "8.4"]
[Result "1-0"]
[TimeControl "180+2"]

1. c4 {[%emt 00:00:02] [%clk 00:03:02]} c5 {[%emt 00:00:02] [%clk 00:03:03]} 2.
Nc3 {[%emt 00:00:01] [%clk 00:03:02]} Nc6 {[%clk 00:03:04]} 3. g3 {[%clk
00:03:04]} g6 {[%emt 00:00:01] [%clk 00:03:05]} 4. Bg2 {[%clk 00:03:05]} Bg7
{[%clk 00:03:06]} 5. Nf3 {[%emt 00:00:01] [%clk 00:03:06]} d6 {[%clk 00:03:07]}
6. O-O {[%emt 00:00:02] [%clk 00:03:05]} e6 {[%clk 00:03:08]} 7. a3 {[%emt
00:00:07] [%clk 00:03:02]} Nge7 {[%emt 00:00:02] [%clk 00:03:08]} 8. Rb1 {[%emt
00:00:01] [%clk 00:03:03]} b6 {[%emt 00:00:02] [%clk 00:03:07]} 9. d3 {[%emt
00:00:05] [%clk 00:03:00]} Bb7 {[%emt 00:00:03] [%clk 00:03:06]} 10. Bg5 {[%emt
00:00:02] [%clk 00:03:00]} h6 {[%emt 00:00:02] [%clk 00:03:06]} 11. Bd2 {[%emt
00:00:01] [%clk 00:03:01]} O-O {[%emt 00:00:04] [%clk 00:03:05]} 12. b4 {[%emt
00:00:01] [%clk 00:03:02]} Qd7 {[%emt 00:00:04] [%clk 00:03:03]} 13. e3 {[%emt
00:00:31] [%clk 00:02:33]} Rab8 {[%emt 00:00:10] [%clk 00:02:55]} 14. Qe2 {[%emt
00:00:10] [%clk 00:02:25]} Rfd8 {[%emt 00:00:17] [%clk 00:02:40]} 15. Rfd1
{[%emt 00:00:02] [%clk 00:02:25]} Nf5 {[%emt 00:00:05] [%clk 00:02:37]} 16. Be1
{[%emt 00:00:13] [%clk 00:02:14]} Qe7 {[%emt 00:00:05] [%clk 00:02:33]} 17. h4
{[%emt 00:00:18] [%clk 00:01:58]} h5 {[%emt 00:00:10] [%clk 00:02:26]} 18. Nb5
{[%emt 00:00:34] [%clk 00:01:25]} Ba8 {[%emt 00:00:06] [%clk 00:02:22]} 19. Bc3
{[%emt 00:00:10] [%clk 00:01:18]} e5 {[%emt 00:00:48] [%clk 00:01:36]} 20. Be1
{[%emt 00:00:01] [%clk 00:01:19]} Qd7 {[%emt 00:00:04] [%clk 00:01:34]} 21. Nc3
{[%emt 00:00:02] [%clk 00:01:19]} Nce7 {[%emt 00:00:03] [%clk 00:01:32]} 22. Nd5
{[%emt 00:00:13] [%clk 00:01:09]} Nxd5 {[%emt 00:00:03] [%clk 00:01:31]} 23.
cxd5 {[%emt 00:00:01] [%clk 00:01:10]} Ne7 {[%emt 00:00:07] [%clk 00:01:26]} 24.
e4 {[%emt 00:00:01] [%clk 00:01:11]} Bb7 {[%emt 00:00:05] [%clk 00:01:23]} 25.
Kh2 {[%emt 00:00:03] [%clk 00:01:10]} Qa4 {[%emt 00:00:17] [%clk 00:01:08]} 26.
Ng5 {[%emt 00:00:12] [%clk 00:00:59]} Qe8 {[%emt 00:00:08] [%clk 00:01:03]} 27.
Bd2 {[%emt 00:00:05] [%clk 00:00:56]} Bc8 {[%emt 00:00:07] [%clk 00:00:57]} 28.
bxc5 {[%emt 00:00:02] [%clk 00:00:56]} dxc5 {[%emt 00:00:01] [%clk 00:00:58]}
29. Bc3 {[%emt 00:00:09] [%clk 00:00:50]} Bg4 {[%emt 00:00:01] [%clk 00:00:59]}
30. f3 {[%emt 00:00:01] [%clk 00:00:50]} Bd7 {[%emt 00:00:01] [%clk 00:01:00]}
31. Qb2 {[%emt 00:00:05] [%clk 00:00:48]} f6 {[%emt 00:00:01] [%clk 00:01:00]}
32. Nh3 {[%emt 00:00:02] [%clk 00:00:48]} Nc8 {[%emt 00:00:02] [%clk 00:01:00]}
33. f4 {[%emt 00:00:03] [%clk 00:00:47]} Nd6 {[%emt 00:00:03] [%clk 00:00:59]}
34. Rf1 {[%emt 00:00:02] [%clk 00:00:48]} Nb5 {[%emt 00:00:04] [%clk 00:00:57]}
35. Bd2 {[%emt 00:00:01] [%clk 00:00:48]} Bg4 {[%emt 00:00:03] [%clk 00:00:56]}
36. Nf2 {[%emt 00:00:02] [%clk 00:00:48]} Bd7 {[%emt 00:00:03] [%clk 00:00:55]}
37. fxe5 {[%emt 00:00:02] [%clk 00:00:48]} Qxe5 {[%emt 00:00:14] [%clk
00:00:44]} 38. Qc1 {[%emt 00:00:12] [%clk 00:00:38]} Qe8 {[%emt 00:00:07] [%clk
00:00:39]} 39. Nh3 {[%emt 00:00:02] [%clk 00:00:38]} Nd4 {[%emt 00:00:02] [%clk
00:00:40]} 40. Nf4 {[%emt 00:00:01] [%clk 00:00:38]} Bg4 {[%emt 00:00:03] [%clk
00:00:38]} 41. Be3 {[%emt 00:00:03] [%clk 00:00:37]} Ne2 {[%clk 00:00:39]} 42.
Qd2 {[%emt 00:00:02] [%clk 00:00:38]} Nxf4 {[%emt 00:00:01] [%clk 00:00:39]} 43.
gxf4 {[%emt 00:00:02] [%clk 00:00:39]} Bf8 {[%emt 00:00:02] [%clk 00:00:38]} 44.
d4 {[%emt 00:00:03] [%clk 00:00:38]} cxd4 {[%emt 00:00:02] [%clk 00:00:38]} 45.
Bxd4 {[%clk 00:00:39]} Bg7 {[%emt 00:00:02] [%clk 00:00:38]} 46. Rbe1 {[%emt
00:00:02] [%clk 00:00:39]} Qb5 {[%emt 00:00:02] [%clk 00:00:39]} 47. a4 {[%emt
00:00:08] [%clk 00:00:33]} Qc4 {[%emt 00:00:02] [%clk 00:00:39]} 48. Rc1 {[%emt
00:00:03] [%clk 00:00:32]} Qxa4 {[%emt 00:00:02] [%clk 00:00:39]} 49. e5 {[%clk
00:00:33]} Be6 {[%emt 00:00:10] [%clk 00:00:31]} 50. Ra1 {[%emt 00:00:05] [%clk
00:00:30]} Qd7 {[%emt 00:00:03] [%clk 00:00:29]} 51. exf6 {[%emt 00:00:04] [%clk
00:00:29]} Bxd5 {[%emt 00:00:01] [%clk 00:00:30]} 52. Be5 {[%emt 00:00:09] [%clk
00:00:22]} Qf7 {[%emt 00:00:16] [%clk 00:00:16]} 53. Bxb8 {[%emt 00:00:06] [%clk
00:00:18]} Qxf6 {[%emt 00:00:01] [%clk 00:00:17]} 54. Bxd5+ {[%emt 00:00:03]
[%clk 00:00:17]} Kh7 {[%emt 00:00:03] [%clk 00:00:16]} 55. Be5 {[%emt 00:00:08]
[%clk 00:00:11]} Qxh4+ {[%emt 00:00:01] [%clk 00:00:17]} 56. Kg1 {[%emt
00:00:01] [%clk 00:00:12]} Bf8 {[%emt 00:00:10] [%clk 00:00:09]} 57. Rxa7+
{[%emt 00:00:02] [%clk 00:00:12]} Kh6 {[%emt 00:00:03] [%clk 00:00:08]} 58. f5+
{[%emt 00:00:03] [%clk 00:00:11]} g5 {[%clk 00:00:09]} 59. Qf2 {[%emt 00:00:05]
[%clk 00:00:08]} Bc5 {[%emt 00:00:01] [%clk 00:00:10]} 60. Bg7+ {[%emt 00:00:01]
[%clk 00:00:09]} Kh7 {[%emt 00:00:03] [%clk 00:00:10]} 61. Bd4+ {[%emt 00:00:01]
[%clk 00:00:10]} Kh6 {[%emt 00:00:01] [%clk 00:00:10]} 62. Qxh4 {[%emt 00:00:02]
[%clk 00:00:00]} 1-0

[Site "Europe Echecs"]